[Event "FIDE WTC Prel-A 2022"]
[Site "Jerusalem"]
[Date "2022.11.20"]
[Round "2.6"]
[White "Cawdery, Daniel"]
[Black "Kovalenko, Igor"]
[Result "0-1"]
[ECO "B43"]
[WhiteElo "2396"]
[BlackElo "2674"]
[Annotator "TA"]
[PlyCount "56"]
[EventDate "2022.11.20"]
[EventType "team-tourn"]
[EventCountry "ISR"]
[SourceTitle "playchess.com"]
[Source "ChessBase"]
[SourceQuality "1"]
[WhiteTeam "South Africa"]
[BlackTeam "Ukraine"]
[WhiteTeamCountry "RSA"]
[BlackTeamCountry "UKR"]
[TimeControl "2700+10"]

{[%evp 15,56,41,28,43,25,-12,-7,0,0,0,0,0,16,0,0,0,0,0,0,0,0,0,0,-157,-147,-130,-131,-147,-135,-146,-146,-150,-123,-120,-121,-122,-122,-124,-122,-122,-116,-188,-192]} 1. e4 {[%emt 0:00:02]} c5 {[%emt 0:00:04]} 2. Nf3 {[%emt 0:00:03]} e6 {[%emt 0:00:02]} 3. Nc3 {[%emt 0:00:14]} a6 {[%emt 0:00:01]} 4. d4 {[%emt 0:00:07]} cxd4 {[%emt 0:00:02]} 5. Nxd4 {[%emt 0:00:01]} b5 {[%emt 0:00:01]} 6. Bd3 {[%emt 0:00:06]} Bb7 {[%emt 0:00:02]} 7. O-O {[%emt 0:00:06]} Nc6 {[%emt 0:00:02]} 8. Nxc6 {[%emt 0:00:14]} Bxc6 {[%emt 0:00:01]} 9. Re1 {[%emt 0:00:09] B43: Sicilian: Kan Variation: 5 Nc3.} Ne7 $1 {[%emt 0:00:03][%mdl 4] is currently scoring better than 9...Bc5.} 10. Bf4 {[%emt 0:02:36]} Ng6 {[%emt 0:00:23]} 11. Bg3 {[%emt 0:00:06] The position is equal.} Bb4 {[%emt 0:04:51][%cal Bf8b4,Bb4a5,Ba5b6,Bb6d4][%mdl 32]} 12. Qd2 {[%emt 0:02:30] [#]} O-O $146 {[%emt 0:00:21]} ({Predecessor:} 12... e5 13. a3 Bxc3 14. Qxc3 Qe7 15. Qb4 d6 16. c4 bxc4 17. Bxc4 O-O 18. Rad1 Rfd8 {1-0 (71) Lindberg,B (2409)-Cramling,P (2486) Falun 2012}) 13. a3 {[%emt 0:00:08]} Ba5 {[%emt 0:00:01]} 14. Bd6 {[%emt 0:02:29]} Re8 {[%emt 0:00:02]} 15. e5 {[%emt 0:00:16]} Rc8 {[%emt 0:04:14]} 16. b4 {[%emt 0:07:36]} Bb6 {[%emt 0:06:30]} 17. Ne4 {[%emt 0:02:52]} Qh4 {[%emt 0:00:34]} 18. g3 {[%emt 0:04:00]} Qg4 {[%emt 0:00:59]} 19. Qe2 $2 {[%emt 0:03:48] [#]} (19. Ng5 Bd8 20. Ne4 Nh4 $17) (19. Qd1 $1 $11 Qh3 20. Bf1) 19... Qxe2 $1 $17 {[%emt 0:00:54]} ({Not} 19... Qh3 20. c3 $11) 20. Rxe2 {[%emt 0:00:03]} Bd4 {[%emt 0:00:02][%csl LRa1,LRe5]} 21. Rd1 {[%emt 0:01:34]} Nxe5 {[%emt 0:01:20]} 22. c3 {[%emt 0:05:45]} Nxd3 {[%emt 0:00:34]} 23. Rxd3 {[%emt 0:01:10]} Bxe4 {[%emt 0:00:02]} 24. Rxd4 {[%emt 0:00:15]} Bd5 {[%emt 0:01:38]} 25. f4 {[%emt 0:01:34]} f6 {[%emt 0:00:11]} 26. Kf2 {[%emt 0:03:32]} Kf7 {[%emt 0:00:02] aiming for ...Rc6.} 27. Bc5 {[%emt 0:01:25]} g6 {[%emt 0:00:53]} 28. Red2 {[%emt 0:02:19]} (28. g4 $17) 28... Rc6 {[%emt 0:00:12] Weighted Error Value: White=0.16 (very precise) /Black=0.02 (flawless)} 0-1

[Event "FIDE WTC Prel-A 2022"]
[Site "Jerusalem"]
[Date "2022.11.20"]
[Round "2.7"]
[White "Bernadskiy, Vitaliy"]
[Black "Barrish, Daniel"]
[Result "1-0"]
[ECO "D00"]
[WhiteElo "2615"]
[BlackElo "2257"]
[Annotator "TA"]
[PlyCount "61"]
[EventDate "2022.11.20"]
[EventType "team-tourn"]
[EventCountry "ISR"]
[SourceTitle "playchess.com"]
[Source "ChessBase"]
[SourceQuality "1"]
[WhiteTeam "Ukraine"]
[BlackTeam "South Africa"]
[WhiteTeamCountry "UKR"]
[BlackTeamCountry "RSA"]
[TimeControl "2700+10"]

{[%evp 9,61,8,6,6,6,9,7,0,25,23,22,20,20,14,29,22,70,35,52,53,62,68,59,14,16,25,35,31,40,40,67,62,83,83,83,83,83,83,84,83,83,83,83,83,92,83,92,91,854,847,801,799,682,640]} 1. d4 {[%emt 0:00:03]} Nf6 {[%emt 0:00:14]} 2. Bg5 {[%emt 0:00:04]} d5 {[%emt 0:00:05]} 3. Nd2 {[%emt 0:00:02]} h6 {[%emt 0:00:19]} 4. Bxf6 {[%emt 0:00:13]} exf6 {[%emt 0:00:02]} 5. e3 {[%emt 0:00:01]} Be7 {[%emt 0:00:36]} 6. g3 {[%emt 0:00:02] D00: 1 d4 d5: Unusual lines.} O-O {[%emt 0:00:08]} 7. Bg2 {[%emt 0:00:01]} c6 {[%emt 0:00:23]} 8. Ne2 {[%emt 0:00:02][%cal Bg1e2,Be2f4,Bf4d3][%mdl 32] [#] The position is equal.} Na6 $146 {[%emt 0:00:34]} ({Predecessor:} 8... Be6 9. O-O Na6 10. Nf4 Qd7 11. c4 dxc4 12. Qe2 b5 13. a4 Nb4 14. axb5 cxb5 15. Bxa8 Rxa8 16. Nxe6 Qxe6 {1-0 (23) Roegiers,L (1428)-Klawitter,B (777) LSS email 2013}) 9. O-O {[%emt 0:00:16]} Nc7 {[%emt 0:00:18]} 10. c4 {[%emt 0:01:15]} f5 {[%emt 0:03:14]} 11. Nf4 {[%emt 0:01:58]} dxc4 {[%emt 0:01:01]} 12. Nxc4 {[%emt 0:00:06]} Ne6 {[%emt 0:00:05]} (12... Rb8 $11) 13. Nd3 {[%emt 0:00:34] White is more active.} (13. d5 $5 {[%cal Rd5e6]} Nxf4 14. exf4 $16 (14. gxf4 cxd5 15. Bxd5 Bf6 $11)) 13... Ng5 {[%emt 0:00:48]} 14. Rc1 {[%emt 0:00:05]} Re8 {[%emt 0:02:28]} 15. b4 {[%emt 0:01:48]} Be6 {[%emt 0:02:31]} 16. Nf4 {[%emt 0:00:15]} Bxc4 {[%emt 0:05:10]} 17. Rxc4 {[%emt 0:00:03]} a5 {[%emt 0:00:04]} 18. bxa5 {[%emt 0:00:32]} Rxa5 {[%emt 0:00:35]} 19. Qb3 {[%emt 0:00:43]} Qa8 {[%emt 0:00:42]} 20. d5 {[%emt 0:00:35][%cal Rd5c6]} Ne4 {[%emt 0:05:58]} 21. Bxe4 {[%emt 0:02:36]} fxe4 {[%emt 0:00:11]} 22. Rxe4 {[%emt 0:00:40]} Bd6 {[%emt 0:12:37]} 23. Rxe8+ {[%emt 0:05:11]} Qxe8 {[%emt 0:00:02]} 24. dxc6 {[%emt 0:00:39]} Qxc6 {[%emt 0:04:26]} 25. Ne2 {[%emt 0:01:03]} Qa6 {[%emt 0:01:30]} 26. Nc1 {[%emt 0:00:17]} Ba3 {[%emt 0:01:19]} 27. h4 {[%emt 0:02:30]} g6 {[%emt 0:00:40]} 28. Rd1 {[%emt 0:00:14] [#] Black must now prevent Rd8+.} Bxc1 $2 {[%emt 0:00:34][%mdl 8192]} (28... Be7 $16) 29. Rd8+ $18 {[%emt 0:02:05] White is clearly winning.} ({Less strong is} 29. Rxc1 Qe6 30. Qxe6 (30. Qxb7 Rxa2 31. Qc8+ Kg7 $16) 30... fxe6 $16) 29... Kg7 {[%emt 0:00:03]} 30. Qc3+ {[%emt 0:00:02]} Qf6 {[%emt 0:00:03]} 31. Qxa5 {[%emt 0:00:19] Weighted Error Value: White=0.05 (flawless) /Black=0.11 (very precise)} 1-0

[Event "FIDE WTC Prel-A 2022"]
[Site "Jerusalem"]
[Date "2022.11.20"]
[Round "2.8"]
[White "Mhango, Banele"]
[Black "Oleksiyenko, Mykhaylo"]
[Result "0-1"]
[ECO "A06"]
[WhiteElo "2210"]
[BlackElo "2594"]
[Annotator "TA"]
[PlyCount "78"]
[EventDate "2022.11.20"]
[EventType "team-tourn"]
[EventCountry "ISR"]
[SourceTitle "playchess.com"]
[Source "ChessBase"]
[SourceQuality "1"]
[WhiteTeam "South Africa"]
[BlackTeam "Ukraine"]
[WhiteTeamCountry "RSA"]
[BlackTeamCountry "UKR"]
[TimeControl "2700+10"]

{[%evp 9,78,0,-3,-33,-20,-36,-30,-69,-67,-68,-69,-72,-67,-61,-58,-82,-73,-78,-72,-74,-78,-101,-100,-100,-96,-95,-100,-107,-107,-98,-95,-127,-116,-118,-133,-128,-121,-161,-156,-379,-205,-202,-208,-217,-236,-263,-259,-271,-268,-253,-275,-272,-271,-275,-264,-368,-348,-766,-766,-766,-766,-766,-766,-757,-752,-935,-724,-1020,-954,-1044,-716]} 1. Nf3 {[%emt 0:00:04]} c5 {[%emt 0:00:09]} 2. b3 {[%emt 0:00:11]} d5 {[%emt 0:00:36]} 3. e3 {[%emt 0:00:15]} Nc6 {[%emt 0:00:49]} 4. Bb2 {[%emt 0:00:06]} a6 {[%emt 0:01:00]} 5. h3 {[%emt 0:00:25]} Nf6 {[%emt 0:01:00]} 6. Be2 {[%emt 0:01:34] [#] A06: Réti Opening: 1 Nf3 d5.} d4 $146 {[%emt 0:01:30]} ({Predecessor:} 6... e6 7. O-O Be7 8. d4 O-O 9. Nbd2 b5 10. a4 b4 11. dxc5 Bxc5 12. Bd3 Bb7 {½-½ (58) Kuznetsova,L (2090)-Lyashenko,A (1996) Novokuznetsk 2010}) 7. d3 {[%emt 0:01:40]} e5 {[%emt 0:01:20]} 8. e4 {[%emt 0:02:35] Black has an edge.} Be7 {[%emt 0:02:55]} 9. O-O {[%emt 0:00:09]} O-O {[%emt 0:00:13]} 10. Nbd2 {[%emt 0:00:26]} b5 {[%emt 0:00:13]} 11. Re1 {[%emt 0:01:21]} Nd7 {[%emt 0:01:00]} 12. Bf1 {[%emt 0:00:38]} Nb6 {[%emt 0:00:12]} 13. c3 {[%emt 0:02:31]} dxc3 {[%emt 0:03:13]} 14. Bxc3 {[%emt 0:00:02]} f6 {[%emt 0:00:02]} 15. Nh2 {[%emt 0:03:42]} Be6 {[%emt 0:00:56]} 16. Ng4 {[%emt 0:00:15]} Qd7 {[%emt 0:00:33]} 17. Ne3 {[%emt 0:00:27]} Rfd8 {[%emt 0:00:32] Black is much more active.} 18. a4 {[%emt 0:01:05]} Rab8 {[%emt 0:02:12]} 19. axb5 {[%emt 0:01:39]} axb5 {[%emt 0:00:01]} 20. Kh2 {[%emt 0:05:24]} Bf8 {[%emt 0:05:14]} 21. g3 {[%emt 0:00:58]} Qf7 {[%emt 0:00:39]} 22. Ra6 {[%emt 0:03:49]} Nd4 {[%emt 0:02:02][%cal Rd4b3]} 23. Ba5 {[%emt 0:04:13]} Rd6 {[%emt 0:00:58]} 24. b4 $2 {[%emt 0:05:24] [#] This costs White the game.} (24. Bxb6 $17 Rbxb6 25. Rxb6 Rxb6 26. h4) 24... Qb7 {[%emt 0:02:11]} (24... Na4 $142 25. Rxd6 Bxd6 26. bxc5 Bxc5) 25. Rxb6 $19 {[%emt 0:00:12]} Rxb6 {[%emt 0:00:01]} 26. Bxb6 {[%emt 0:00:02]} Qxb6 {[%emt 0:00:02]} 27. bxc5 {[%emt 0:00:01]} Bxc5 {[%emt 0:01:03]} ({But not} 27... Qxc5 $2 28. Bg2 $19) 28. Bg2 {[%emt 0:02:02]} Bb4 {[%emt 0:04:48] This bishop pair is nice.} 29. Rf1 {[%emt 0:00:45]} Bxd2 {[%emt 0:00:37]} 30. Qxd2 {[%emt 0:00:01]} b4 {[%emt 0:00:01][%cal Bb5b4,Bb4b3,Bb3b2][%mdl 32]} 31. f4 {[%emt 0:03:32]} b3 {[%emt 0:00:13] Strongly threatening ...b2.} 32. fxe5 {[%emt 0:00:32]} fxe5 {[%emt 0:01:35] [#] aiming for ...b2.} 33. h4 $2 {[%emt 0:00:56]} (33. Nd5 Qc5 34. Qg5) 33... b2 {[%emt 0:05:23] Black is clearly winning.} 34. Rb1 {[%emt 0:00:01]} Ba2 {[%emt 0:00:59]} 35. Nc4 {[%emt 0:00:02]} Bxc4 {[%emt 0:00:37]} 36. dxc4 {[%emt 0:00:01]} Qb3 {[%emt 0:00:36]} 37. c5 {[%emt 0:01:50]} Qa2 {[%emt 0:00:11]} 38. Qd1 {[%emt 0:01:14]} Rc8 {[%emt 0:01:06]} 39. Qg4 {[%emt 0:01:11]} Rf8 {[%emt 0:01:58] Weighted Error Value: White=0.58/Black=0.08 (flawless)} ({Not} 39... Qxb1 40. Qxc8+ Kf7 41. Qc7+ Kf6 42. Qd8+ Kf7 43. Qc7+ Kf6 44. Qd8+ Kf7 45. Qc7+ $11) 0-1

[Event "FIDE WTC Prel-A 2022"]
[Site "Jerusalem"]
[Date "2022.11.20"]
[Round "2.9"]
[White "Van Foreest, Jorden"]
[Black "Vachier-Lagrave, Maxime"]
[Result "0-1"]
[ECO "D87"]
[WhiteElo "2690"]
[BlackElo "2736"]
[Annotator "TA"]
[PlyCount "118"]
[EventDate "2022.11.20"]
[EventType "team-tourn"]
[EventCountry "ISR"]
[SourceTitle "playchess.com"]
[Source "ChessBase"]
[SourceQuality "1"]
[WhiteTeam "Netherlands"]
[BlackTeam "France"]
[WhiteTeamCountry "NED"]
[BlackTeamCountry "FRA"]
[TimeControl "2700+10"]

{[%evp 20,118,0,0,0,-37,-10,0,0,0,0,0,0,0,23,15,8,0,0,-2,-3,-18,-1,-77,-77,-70,-58,-115,-117,-115,-109,-139,-77,-96,-71,-70,-22,-25,0,0,0,0,0,0,0,-9,0,-153,0,-50,-32,-240,-77,-77,-63,-190,-184,-144,-154,-239,-239,-206,-160,-5235,-2239,-12829,-12829,-12831,-12831,-12831,-12828,-12830,-12831,-12833,-12831,-12833,-12834,-12835,-12836,-12842,-12835,-12835,-12835,-12836,-12836,-12834,-12835,-12835,-12835,-12836,-12836,-12837,-12837,-12837,-12838,-12846,-12839,-12840,-12840,-12841,-12840]} 1. d4 {[%emt 0:00:03]} Nf6 {[%emt 0:00:01]} 2. c4 {[%emt 0:00:04]} g6 {[%emt 0:00:02]} 3. Nc3 {[%emt 0:00:10]} d5 {[%emt 0:00:02]} 4. cxd5 {[%emt 0:00:07]} Nxd5 {[%emt 0:00:01]} 5. e4 {[%emt 0:00:06]} Nxc3 {[%emt 0:00:03]} 6. bxc3 {[%emt 0:00:02]} Bg7 {[%emt 0:00:01]} 7. Bc4 {[%emt 0:00:09]} c5 {[%emt 0:00:04]} 8. Ne2 {[%emt 0:00:09]} O-O {[%emt 0:00:03]} 9. Be3 {[%emt 0:00:18]} Nc6 {[%emt 0:00:35]} 10. h4 {[%emt 0:00:35]} cxd4 {[%emt 0:00:02]} 11. cxd4 {[%emt 0:00:03]} Na5 {[%emt 0:00:02] D87: Exchange Grünfeld: Classical Line: Variations without ...cxd4.} 12. Bd5 {[%emt 0:02:05] [#]} h5 $146 {[%emt 0:06:13]} (12... e6 $5 {[%cal Re6d5]} 13. Bb3 Bd7 $11) ({Predecessor:} 12... e6 13. Bb3 Nxb3 14. axb3 e5 15. d5 f5 16. h5 Rf7 17. hxg6 hxg6 18. Qd2 f4 19. Bc5 {1-0 (34) Pres,G (2310)-Semeniuk,A (2415) Novosibirsk 1996}) 13. a4 {[%emt 0:00:05]} Bd7 {[%emt 0:00:01] The position is equal.} 14. O-O {[%emt 0:43:34]} Rc8 {[%emt 0:04:29]} 15. Bg5 {[%emt 0:00:00]} Bc6 {[%emt 0:01:07]} 16. Nf4 {[%emt 0:00:00]} Bxd5 {[%emt 0:01:04]} 17. Nxd5 {[%emt 0:00:00]} Nc6 {[%emt 0:00:39]} 18. Rc1 {[%emt 0:00:00][%cal Oc1c6]} Kh7 {[%emt 0:03:47]} 19. Rc4 {[%emt 0:00:00]} ({Of course not} 19. Nxe7 Nxe7 20. Rxc8 Qxc8 $17) 19... Qd7 {[%emt 0:01:14] Inhibits g4.} 20. Re1 {[%emt 0:00:00]} Rfd8 {[%emt 0:08:39]} 21. f3 {[%emt 0:00:00]} (21. Qa1 $11) 21... f6 $1 $17 {[%emt 0:00:56]} 22. Be3 {[%emt 0:00:00]} f5 $1 {[%emt 0:00:02]} 23. Bg5 {[%emt 0:00:00]} ({White should try} 23. Qb1 $15) 23... fxe4 {[%emt 0:01:15]} 24. fxe4 {[%emt 0:00:00]} Rf8 {[%emt 0:00:02]} 25. Be3 {[%emt 0:00:00] [#]} e6 {[%emt 0:02:00]} ({Black should play} 25... Rcd8 $1 26. Bg5 Qd6) 26. Nb4 {[%emt 0:00:00]} Nxb4 {[%emt 0:03:34]} 27. Rxb4 {[%emt 0:00:00]} Qe7 {[%emt 0:00:02] Black is more active.} (27... Rc3 $15) 28. Rb3 $11 {[%emt 0:00:00]} Qxh4 {[%emt 0:00:02][%cal Oc8c2] White must now prevent ...Rc2!} 29. Rxb7 {[%emt 0:00:00]} Qg3 {[%emt 0:01:52]} 30. Re2 {[%emt 0:00:00]} Rc7 $36 {[%emt 0:02:04][%mdl 2048] Black fights for an advantage. Chess con chili.} 31. Rxc7 {[%emt 0:00:00]} Qxc7 {[%emt 0:00:02]} 32. Rf2 {[%emt 0:00:00]} Rd8 {[%emt 0:00:28]} 33. Qb3 $2 {[%emt 0:00:00] Inhibits Qc3.} (33. Qa1 $11) 33... Rxd4 $2 {[%emt 0:01:47]} (33... Bxd4 $17 34. Rf1 Qb8) 34. Qxe6 {[%emt 0:01:00]} (34. Bxd4 $11 Bxd4 35. Qxe6) 34... Rd7 {[%emt 0:01:03]} 35. Bf4 $2 {[%emt 0:00:24]} (35. Rf1 $15) 35... Qd8 $2 {[%emt 0:00:50]} (35... Rd1+ $19 36. Kh2 Qc5) 36. Rf1 $17 {[%emt 0:00:29]} Re7 {[%emt 0:01:30]} (36... Rd1 {feels hotter.} 37. Rxd1 Qxd1+ 38. Kf2 Qxa4 39. Qd5 Qc2+) 37. Qd6 {[%emt 0:00:19]} ({Better is} 37. Qd5 $15 Qe8 38. Re1) 37... Qxd6 $19 {[%emt 0:00:24]} 38. Bxd6 {[%emt 0:00:01]} Rxe4 {[%emt 0:00:01][%mdl 4096] Endgame KRB-KRB} 39. Bc5 {[%emt 0:00:01] [#]} (39. Rf4 $17 {was necessary.} Rd4 40. Bb8) 39... a5 $1 {[%emt 0:01:33]} ({Stronger than} 39... Rxa4 40. Rf7) 40. Rf7 {[%emt 0:00:01]} Kh6 {[%emt 0:00:02] aiming for ...Bd4+.} ({Weaker is} 40... Rxa4 41. Bf8 Kg8 42. Rxg7+ Kxf8 43. Rxg6 $17) 41. Bb6 {[%emt 0:00:50]} (41. Rd7 $17) 41... Bd4+ {[%emt 0:00:03] Black is clearly winning.} 42. Bxd4 {[%emt 0:00:11]} Rxd4 {[%emt 0:00:01] KR-KR} 43. Rc7 {[%emt 0:00:28]} Rxa4 {[%emt 0:00:04]} 44. Rc5 {[%emt 0:00:02]} Ra3 {[%emt 0:00:10]} 45. Kh2 {[%emt 0:00:04]} h4 {[%emt 0:00:02]} 46. Rc4 {[%emt 0:00:07]} Kh5 {[%emt 0:00:04]} 47. Rc5+ {[%emt 0:00:07]} g5 {[%emt 0:00:01]} 48. Rd5 {[%emt 0:00:36]} a4 {[%emt 0:00:28]} 49. Ra5 {[%emt 0:00:50]} Kg4 {[%emt 0:00:27]} 50. Rc5 {[%emt 0:00:08]} Ra1 {[%emt 0:00:06]} 51. Rc4+ {[%emt 0:00:05]} Kf5 {[%emt 0:00:19]} 52. Rc5+ {[%emt 0:00:20]} Kg6 {[%emt 0:00:01]} 53. Rc6+ {[%emt 0:00:02]} Kh5 {[%emt 0:00:02]} 54. Rc8 {[%emt 0:00:04]} Rb1 {[%emt 0:00:13]} 55. Rh8+ {[%emt 0:00:21]} Kg4 {[%emt 0:00:05]} 56. Ra8 {[%emt 0:00:03]} Rb4 {[%emt 0:00:02]} 57. Ra5 {[%emt 0:00:02]} Kf4 {[%emt 0:00:07]} 58. Ra8 {[%emt 0:00:14]} g4 {[%emt 0:00:13]} 59. Rh8 {[%emt 0:00:18]} Ke3 {[%emt 0:00:11] Weighted Error Value: White=0.54/Black=0.17 (very precise)} 0-1

[Event "FIDE WTC Prel-A 2022"]
[Site "Jerusalem"]
[Date "2022.11.20"]
[Round "2.10"]
[White "Moussard, Jules"]
[Black "Van Foreest, Lucas"]
[Result "1/2-1/2"]
[ECO "C54"]
[WhiteElo "2676"]
[BlackElo "2585"]
[Annotator "TA"]
[PlyCount "172"]
[EventDate "2022.11.20"]
[EventType "team-tourn"]
[EventCountry "ISR"]
[SourceTitle "playchess.com"]
[Source "ChessBase"]
[SourceQuality "1"]
[WhiteTeam "France"]
[BlackTeam "Netherlands"]
[WhiteTeamCountry "FRA"]
[BlackTeamCountry "NED"]
[TimeControl "2700+10"]

{[%evp 12,172,5,11,14,4,23,23,25,0,0,0,8,3,10,16,28,28,31,39,33,31,38,10,23,29,20,25,30,16,17,28,30,0,0,0,0,0,11,0,0,0,0,-24,-14,-19,-24,-77,-76,-87,-70,-82,-74,-81,-39,-51,-6,-84,-80,-107,0,0,0,0,85,40,50,54,48,0,0,0,0,0,9,9,9,13,13,14,14,14,18,0,0,0,12,22,29,23,16,25,31,8,10,0,27,25,23,12,12,0,0,0,0,0,6,6,138,138,215,193,208,205,237,89,148,122,130,0,0,0,0,0,0,0,0,0,0,0,0,0,1,0,0,0,0,6,51,51,227,0,0,0,0,0,0,0,0,0,0,0,0,0,0,0,0,0,0,0,0,0,0]} 1. e4 {[%emt 0:00:02]} e5 {[%emt 0:00:10]} 2. Nf3 {[%emt 0:00:02]} Nc6 {[%emt 0:00:04]} 3. Bc4 {[%emt 0:00:04]} Nf6 {[%emt 0:00:06]} 4. d3 {[%emt 0:00:02]} Bc5 {[%emt 0:00:06]} 5. O-O {[%emt 0:00:05]} O-O {[%emt 0:00:08]} 6. h3 {[%emt 0:00:05]} d6 {[%emt 0:00:03]} 7. c3 {[%emt 0:00:04]} a5 {[%emt 0:00:01] C54: Giuoco Piano: 4 c3 Nf6, main lines with 5 d4 and 5 d3.} 8. Re1 {[%emt 0:00:04]} Be6 {[%emt 0:00:08]} 9. Bb5 {[%emt 0:00:40]} Ba7 {[%emt 0:00:02] White has an edge.} 10. Be3 {[%emt 0:01:28]} Bxe3 {[%emt 0:00:20]} 11. Rxe3 {[%emt 0:00:02]} Ne7 {[%emt 0:00:10]} 12. d4 {[%emt 0:00:16] [#]} c6 $146 {[%emt 0:00:09]} ({Predecessor:} 12... Ng6 13. Nbd2 c6 14. Bf1 a4 15. b4 axb3 16. axb3 b5 17. b4 Qb6 18. Re1 h6 {½-½ (30) Adams,M (2692)-Matlakov,M (2710) Budva 2019}) 13. Bf1 {[%emt 0:01:41]} Ng6 {[%emt 0:00:03]} 14. c4 {[%emt 0:05:02]} a4 {[%emt 0:00:51]} 15. Nc3 {[%emt 0:01:29]} Qa5 {[%emt 0:00:04]} 16. Qd2 {[%emt 0:01:57]} h6 {[%emt 0:02:19]} 17. Rc1 {[%emt 0:01:34]} Rfd8 {[%emt 0:00:23]} 18. d5 {[%emt 0:02:08]} cxd5 {[%emt 0:02:17]} 19. Nxd5 {[%emt 0:01:13]} Nd7 {[%emt 0:00:25]} 20. Nc3 {[%emt 0:07:05]} Nc5 {[%emt 0:00:50]} 21. Rd1 {[%emt 0:00:50]} Bd7 {[%emt 0:06:59]} 22. Nb5 {[%emt 0:03:54]} (22. Qxd6 $2 Be6 23. Qxd8+ Rxd8 $19) 22... Qxd2 {[%emt 0:00:33]} 23. Rxd2 {[%emt 0:02:26]} Bxb5 {[%emt 0:00:38]} 24. cxb5 {[%emt 0:00:01]} Rac8 {[%emt 0:00:19]} 25. g3 {[%emt 0:00:58]} Nf8 {[%emt 0:00:22]} 26. h4 {[%emt 0:00:05]} Nfe6 {[%emt 0:00:06]} 27. Kg2 {[%emt 0:02:21]} Kf8 {[%emt 0:00:19]} 28. Rc2 {[%emt 0:01:34]} Nd7 {[%emt 0:01:29]} 29. Rd2 {[%emt 0:00:13]} (29. Rec3 $11 Rc5 30. Rc1) 29... Ke7 {[%emt 0:00:44]} 30. Be2 {[%emt 0:00:31]} Nb6 {[%emt 0:01:19]} 31. b3 {[%emt 0:01:59]} axb3 {[%emt 0:00:03]} 32. axb3 {[%emt 0:00:02]} Rc1 {[%emt 0:00:17]} 33. h5 $1 {[%emt 0:00:43]} Nd7 {[%emt 0:04:39][%cal Bb6d7,Bd7f6,Bf6g4][%mdl 32]} 34. Ra2 {[%emt 0:01:16]} (34. Bc4 $11) 34... Nf6 $17 {[%emt 0:00:33]} 35. Ra7 {[%emt 0:00:26]} Rd7 {[%emt 0:01:11]} (35... Rb8 $17 {And now ...Ng4 would win.} 36. Nh2 Rc2) 36. b6 $11 {[%emt 0:00:06]} Ng4 {[%emt 0:01:04]} 37. Rd3 {[%emt 0:00:02] [#] Strongly threatening Nh4.} Nc5 {[%emt 0:01:21]} (37... Nf6 $1 $11) 38. Rd1 {[%emt 0:04:39]} (38. Nh4 {keeps more tension.} Rc2 39. Nf5+ Kf6 40. Rf3) 38... Rxd1 {[%emt 0:02:21]} 39. Bxd1 {[%emt 0:00:02]} Nxe4 {[%emt 0:00:36]} 40. b4 {[%emt 0:02:51]} (40. Be2 $14 {was preferrable.}) 40... Nc3 $1 {[%emt 0:00:45]} (40... Ngxf2 $2 41. Ba4 $18) 41. Bc2 {[%emt 0:00:02]} e4 {[%emt 0:03:36]} 42. Nd4 {[%emt 0:00:39]} Ne5 {[%emt 0:00:35] Pair of Knights!} 43. Ra3 {[%emt 0:00:21]} Nd5 {[%emt 0:00:10][%csl LRb4,LRb6]} 44. Bxe4 {[%emt 0:00:23]} Nxb6 {[%emt 0:00:24]} 45. Ra7 {[%emt 0:00:13]} d5 {[%emt 0:00:40]} 46. Bf5 {[%emt 0:00:01][%mdl 1024] White has compensation.} Nc8 {[%emt 0:01:44]} 47. Ra8 {[%emt 0:00:04]} Nb6 {[%emt 0:00:04]} 48. Ra7 {[%emt 0:00:31]} Nc8 {[%emt 0:00:01]} 49. Ra5 {[%emt 0:00:11]} Rd8 {[%emt 0:00:32]} 50. Bxc8 {[%emt 0:00:25]} Rxc8 {[%emt 0:00:01]} 51. Rxd5 {[%emt 0:00:04][%mdl 4096] Endgame KRN-KRN} Nc6 {[%emt 0:01:11]} 52. Rc5 {[%emt 0:00:35]} Kd7 {[%emt 0:00:11]} 53. Rd5+ {[%emt 0:00:06]} Ke7 {[%emt 0:00:32]} 54. Nf5+ {[%emt 0:00:06]} Kf6 {[%emt 0:00:02]} (54... Ke6 55. Rb5 $16) 55. g4 {[%emt 0:00:24]} Nxb4 {[%emt 0:00:57]} 56. Rb5 {[%emt 0:00:01]} Nd3 {[%emt 0:00:25]} 57. Kg3 {[%emt 0:00:19]} Nc5 {[%emt 0:00:18]} 58. Nd6 {[%emt 0:00:10][%csl LRb7,LRc8]} Rc6 {[%emt 0:00:02]} 59. Ne8+ {[%emt 0:00:03]} Ke5 {[%emt 0:01:48]} (59... Ke7 $11 {keeps the balance.} 60. Nxg7 Ne4+ 61. Kf4 Nd6 62. Re5+ (62. Nf5+ Nxf5 63. Kxf5 Rf6+ 64. Ke5 Rxf2 $11) 62... Kf6 63. Ne8+ Nxe8 64. Rxe8 Rc5) 60. Nxg7 $16 {[%emt 0:00:01] White is more active.} Kd4 {[%emt 0:00:04]} (60... Kf6 $16) 61. Nf5+ $18 {[%emt 0:00:02]} Kc4 {[%emt 0:00:02]} 62. Rb1 {[%emt 0:00:02]} Ne4+ {[%emt 0:00:46] [#]} 63. Kf4 {[%emt 0:00:16]} (63. Kg2 $1 $18 {is the precise move to win.}) 63... Nc5 {[%emt 0:01:37]} ({Better is} 63... Nxf2 64. Rc1+ (64. Rxb7 Nd3+ 65. Kg3 Ne5 $16) 64... Kd5 65. Rxc6 bxc6) 64. f3 {[%emt 0:00:32]} b5 {[%emt 0:00:00]} 65. Ne3+ {[%emt 0:00:03]} (65. g5 $16 hxg5+ 66. Kg3 (66. Kxg5 Ne6+ 67. Kg4 Ra6 $16)) 65... Kd3 $11 {[%emt 0:00:05] aiming for ...Ne6+.} 66. Nd5 {[%emt 0:00:13]} Kc4 {[%emt 0:00:15]} 67. Ne3+ {[%emt 0:00:18]} Kd3 {[%emt 0:00:01]} 68. Nf5 {[%emt 0:00:12]} Rb6 {[%emt 0:00:03]} 69. Ke5 {[%emt 0:00:09]} Nd7+ {[%emt 0:00:29]} 70. Kd5 {[%emt 0:00:04]} Nf6+ {[%emt 0:00:09]} 71. Kc5 {[%emt 0:00:03]} Nd7+ {[%emt 0:00:01]} 72. Kd5 {[%emt 0:00:01]} Nf6+ {[%emt 0:00:01]} 73. Kc5 {[%emt 0:00:06]} Nd7+ {[%emt 0:00:02]} 74. Kb4 {[%emt 0:00:12]} Ne5 {[%emt 0:00:36]} 75. Re1 {[%emt 0:00:10]} Re6 $2 {[%emt 0:01:41]} (75... f6 $1 $14) 76. Kxb5 $2 {[%emt 0:00:09]} (76. Re3+ $18 Kc2 77. Kxb5) 76... Nxf3 {[%emt 0:00:06] The position is equal.} 77. Rxe6 {[%emt 0:00:34]} fxe6 {[%emt 0:00:01]} 78. Nxh6 $18 {[%emt 0:00:02] Threatens to win with Nf7. KN-KN} Ng5 {[%emt 0:00:54] Prevents Nf7.} 79. Kc5 {[%emt 0:00:05]} Ke4 {[%emt 0:00:07]} 80. Kd6 {[%emt 0:00:24]} Kf4 {[%emt 0:00:02]} 81. Ke7 {[%emt 0:00:05]} e5 {[%emt 0:00:01]} 82. Kf6 {[%emt 0:00:15]} e4 {[%emt 0:00:14] ...e3 is the strong threat.} 83. Nf5 {[%emt 0:00:02]} Kxg4 {[%emt 0:00:08]} 84. Kg6 {[%emt 0:00:06]} Ne6 {[%emt 0:00:30]} 85. Ne3+ {[%emt 0:00:08]} Kf3 {[%emt 0:00:11]} 86. Nc4 {[%emt 0:00:05]} Nf4+ {[%emt 0:00:07] Blacks defense is rewarded with a draw.  Weighted Error Value: White=0.11 (very precise) /Black=0.13 (very precise)} 1/2-1/2